bitfinex-derivatives/quotes_SOLF0:USTF0_20241211
["timestamp","ask_amount","ask_price","bid_price","bid_amount"]
[1733892221369,7.04926117,218.73,218.7,2.24]
[1733892225681,7.04926117,218.71,218.7,2.24]
[1733892235382,7.04926117,218.71,218.68,2.24]
[1733892236383,9.33476117,218.71,218.68,2.24]
[1733892236788,9.33476117,218.71,218.66,2.286]
[1733892236987,9.33476117,218.71,218.67,2.24]
[1733892237483,2.2852,218.74,218.68,2.2858]
[1733892237690,7.04926117,218.73,218.68,2.2858]
[1733892237986,7.04926117,218.73,218.69,2.24]
[1733892239189,7.04926117,218.73,218.69,4.5256]
[1733892239587,7.04926117,218.73,218.69,2.24]
[1733892240486,7.04926117,218.75,218.69,2.24]
[1733892240885,4.2086,218.84,218.69,9.28926117]
[1733892241087,7.04926117,218.78,218.71,7.04926117]
[1733892241290,7.04926117,218.78,218.73,2.2853]
[1733892241583,7.04926117,218.78,218.74,2.24]
[1733892242179,7.04926117,218.76,218.66,5.57948771]
[1733892242381,7.04926117,218.74,218.7,2.2856]
[1733892242586,7.04926117,218.74,218.67,9.28926117]
[1733892243099,7.04926117,218.74,218.7,2.2856]
[1733892243284,7.04926117,218.74,218.67,9.28926117]
[1733892243485,2.2847,218.79,218.72,2.2853]
[1733892243684,2.2847,218.79,218.73,2.24]
[1733892243685,7.04926117,218.75,218.73,2.24]
[1733892244586,7.04926117,218.8,218.73,9.28926117]
[1733892244787,7.04926117,218.83,218.77,7.04926117]
[1733892244985,7.04926117,218.83,218.78,2.24]
[1733892245688,7.04926117,218.85,218.79,7.04926117]
[1733892246291,7.04926117,218.85,218.81,2.2844]
[1733892246489,7.04926117,218.87,218.79,7.04926117]
[1733892246684,0.18013,218.9,218.81,7.04926117]
[1733892246881,7.04926117,218.88,218.81,7.04926117]
[1733892247485,0.18013,218.9,218.83,2.2841]
[1733892247684,7.04926117,218.88,218.84,2.22]
[1733892247989,9.33361789,218.88,218.84,2.22]
[1733892248187,9.33361789,218.88,218.84,4.504]
[1733892248392,2.28446109,218.87,218.84,4.504]
[1733892250389,2.28446109,218.87,218.84,2.22]
[1733892250588,7.04926117,218.86,218.84,2.22]
[1733892251995,7.04926117,218.86,218.8,2.2845]
[1733892252298,7.04926117,218.86,218.81,2.22]
[1733892253392,9.33326117,218.86,218.81,2.22]
[1733892253591,7.04926117,218.84,218.81,2.22]
[1733892254494,9.33346117,218.84,218.81,2.22]
[1733892254999,7.04926117,218.82,218.81,2.22]
[1733892256299,7.04926117,218.82,218.78,5.56764996]
[1733892256503,7.04926117,218.8,218.79,2.22]
[1733892256906,7.04926117,218.8,218.66,4.291]
[1733892257201,7.04926117,218.8,218.74,2.2852]
[1733892257599,2.7774,218.91,218.75,2.22]
[1733892257600,7.04926117,218.76,218.75,2.22]
[1733892257796,7.04926117,218.76,218.71,2.2855]
[1733892257797,7.04926117,218.76,218.74,2.22]
[1733892257996,2.22,218.86,218.71,2.2855]
[1733892257997,7.04926117,218.75,218.71,5.38827838]
[1733892258205,7.04926117,218.73,218.72,2.22]
[1733892259401,7.04926117,218.73,218.71,2.22]
[1733892259600,7.04926117,218.72,218.71,2.22]
[1733892262106,7.04926117,218.73,218.71,2.22]
[1733892263199,4.1702,218.8,218.71,2.22]
[1733892263397,7.04926117,218.78,218.71,2.22]
[1733892263703,7.04926117,218.78,218.74,2.2852]
[1733892265610,2.8213,218.91,218.74,7.04926117]
[1733892265814,7.04926117,218.81,218.77,2.2849]
[1733892266017,7.04926117,218.81,218.78,2.22]
[1733892266717,5.0413,218.91,218.78,2.22]
[1733892266916,7.04926117,218.82,218.78,4.5047]
[1733892267315,7.04926117,218.82,218.78,2.22]
[1733892271922,9.33366117,218.82,218.78,2.22]
[1733892272218,7.04926117,218.8,218.7,7.04926117]
[1733892272524,7.84263909,218.9,218.71,2.22]
[1733892272525,7.04926117,218.76,218.71,2.22]
[1733892272924,7.04926117,218.76,218.71,4.5054]
[1733892275124,7.04926117,218.76,218.71,2.22]
[1733892275125,9.33426117,218.76,218.71,2.22]
[1733892275321,9.33426117,218.76,218.72,2.22]
[1733892275322,7.04926117,218.74,218.72,2.22]
[1733892276623,7.04926117,218.74,218.68,5.51776231]
[1733892276925,7.04926117,218.71,218.69,2.22]
[1733892277633,7.04926117,218.71,218.68,2.22]
[1733892277921,7.04926117,218.69,218.68,2.22]
[1733892285129,7.04926117,218.69,218.65,2.2861]
[1733892285330,7.04926117,218.69,218.66,2.22]
[1733892291431,7.04926117,218.67,218.65,2.22]
[1733892291827,7.04926117,218.67,218.64,2.22]
[1733892292431,7.04926117,218.67,218.62,2.2864]
[1733892292634,7.04926117,218.67,218.63,2.22]
[1733892294537,7.04926117,218.69,218.63,2.22]
[1733892295432,7.04926117,218.69,218.64,2.2862]
[1733892295630,7.04926117,218.67,218.64,2.2862]
[1733892296438,7.04926117,218.67,218.63,4.5063]
[1733892300446,7.04926117,218.67,218.63,2.2863]
[1733892300733,7.04926117,218.67,218.64,2.22]
[1733892301132,7.04926117,218.65,218.64,2.22]
[1733892301335,7.04926117,218.65,218.57,8.43956117]
[1733892301536,7.04926117,218.61,218.48,4.5758]
[1733892301741,9.33586117,218.61,218.57,2.22]
[1733892301934,7.04926117,218.59,218.55,2.2872]
[1733892302139,7.04926117,218.59,218.56,2.22]
[1733892302340,7.04926117,218.57,218.5,7.04926117]
[1733892302541,7.04926117,218.55,218.51,2.22]
[1733892302935,7.04926117,218.55,218.52,5.57749996]
[1733892303539,7.04926117,218.55,218.52,7.86499996]
[1733892303739,7.04926117,218.53,218.3,6.3372883]
[1733892303941,7.04926117,218.48,218.39,7.04926117]
[1733892304142,7.04926117,218.46,218.4,2.22]
[1733892305245,7.04926117,218.46,218.42,5.53236304]
[1733892305546,7.04926117,218.46,218.4,2.22]
[1733892305947,7.04926117,218.46,218.41,5.52247499]
[1733892306443,7.04926117,218.46,218.41,7.74247499]
[1733892307042,7.04926117,218.46,218.38,2.8232]
[1733892307043,7.04926117,218.44,218.38,2.8232]
[1733892307247,7.04926117,218.42,218.39,2.22]
[1733892307448,7.04926117,218.42,218.38,5.47653378]
[1733892307746,2.22,218.48,218.37,2.22]
[1733892307747,7.04926117,218.4,218.37,2.22]
[1733892307939,7.04926117,218.4,218.36,2.22]
[1733892308246,7.04926117,218.4,218.32,5.1154]
[1733892308446,7.04926117,218.38,218.33,7.78004432]
[1733892308647,2.2887,218.41,218.31,6.7999211]
[1733892308844,2.7537,218.46,218.32,7.04926117]
[1733892309142,7.04926117,218.39,218.32,7.04926117]
[1733892309541,7.04926117,218.39,218.32,12.46755733]
[1733892309742,2.7537,218.46,218.36,7.04926117]
[1733892309939,7.04926117,218.45,218.4,2.2887]
[1733892310142,7.04926117,218.45,218.41,2.22]
[1733892310947,7.04926117,218.45,218.41,4.5086]
[1733892311247,11.06932324,218.48,218.41,2.22]
[1733892311543,13.35762324,218.45,218.36,2.2891]
[1733892311746,13.35762324,218.45,218.38,2.22]
[1733892312245,11.06932324,218.45,218.38,2.22]
[1733892313151,11.06932324,218.42,218.32,5.41829616]
[1733892313351,2.289,218.38,218.33,2.22]
[1733892313553,11.06932324,218.39,218.33,2.22]
[1733892314145,11.06932324,218.39,218.31,2.2903211]
[1733892314146,2.2894,218.34,218.31,2.2903211]
[1733892314349,11.06932324,218.32,218.31,2.2903211]
[1733892314845,11.06932324,218.32,218.27,2.22]
[1733892315346,11.06932324,218.32,218.25,2.22]
[1733892315551,11.06932324,218.29,218.25,2.22]
[1733892315848,11.06932324,218.29,218.23,5.43531905]
[1733892316252,2.289,218.38,218.3,2.2898]
[1733892316450,11.06932324,218.36,218.3,2.2898]
[1733892316653,11.06932324,218.36,218.29,2.22]
[1733892317549,11.06932324,218.36,218.29,4.5098]
[1733892318053,11.06932324,218.36,218.29,2.22]
[1733892318953,11.06932324,218.37,218.29,2.22]
[1733892319551,11.06932324,218.37,218.28,2.22]
[1733892319943,2.2892,218.36,218.28,2.22]
[1733892320151,11.06932324,218.34,218.28,2.22]
[1733892321148,11.06932324,218.3,218.23,5.43531905]
[1733892322753,2.2899,218.29,218.23,5.43531905]
[1733892323449,11.06932324,218.27,218.14,4.2065]
[1733892323752,11.06932324,218.27,218.15,2.22]
[1733892324157,11.06932324,218.27,218.14,4.2065]
[1733892324348,11.06932324,218.24,218.16,5.5585892]
[1733892324856,11.06932324,218.24,218.15,2.22]
[1733892325056,11.06932324,218.21,218.14,2.22]
[1733892326152,2.7501,218.28,218.14,2.22]
[1733892326559,11.06932324,218.27,218.14,2.22]
[1733892326857,2.2902,218.26,218.18,2.291]
[1733892327857,11.06932324,218.27,218.19,2.2909]
[1733892328053,11.06932324,218.27,218.2,2.22]
[1733892328851,11.06932324,218.3,218.2,2.22]
[1733892329151,11.06932324,218.3,218.24,2.2904]
[1733892329349,11.06932324,218.3,218.25,2.22]
[1733892329558,12.47712324,218.33,218.25,2.22]
[1733892329750,11.06932324,218.33,218.25,2.22]
[1733892329954,13.35862324,218.36,218.25,2.22]
[1733892330458,11.06932324,218.36,218.25,2.22]
[1733892330656,13.35852324,218.36,218.29,2.2899]
[1733892330854,13.35852324,218.36,218.3,2.22]
[1733892331950,11.06932324,218.36,218.3,2.22]
[1733892333258,11.06932324,218.36,218.31,2.2897]
[1733892333453,11.06932324,218.36,218.3,2.22]
[1733892334652,11.06932324,218.36,218.32,2.2896]
[1733892334854,11.06932324,218.36,218.27,7.85322063]
[1733892335455,11.06932324,218.33,218.19,1.4829]
[1733892335659,11.06932324,218.33,218.23,2.22]
[1733892335858,11.06932324,218.33,218.24,2.22]
[1733892336061,13.35882324,218.33,218.25,2.2903]
[1733892336757,11.06932324,218.33,218.24,2.22]
[1733892337061,11.06932324,218.33,218.24,4.5104]
[1733892337357,11.06932324,218.3,218.22,5.51117759]
[1733892337558,2.2903,218.26,218.23,2.22]
[1733892338659,2.2905,218.24,218.21,2.22]
[1733892339057,2.2903,218.26,218.21,2.22]
[1733892339655,11.06932324,218.27,218.22,2.2906]
[1733892340459,13.35942324,218.27,218.22,2.2906]
[1733892341664,13.35942324,218.27,218.21,4.5107]
[1733892343668,11.06932324,218.27,218.21,2.22]
[1733892343868,1.4199,218.31,218.24,2.2903]
[1733892343869,13.35912324,218.3,218.24,2.2903]
[1733892344365,2.29053094,218.29,218.24,2.2903]
[1733892345564,4.58043094,218.29,218.22,2.2906]
[1733892345765,4.58043094,218.29,218.23,2.22]
[1733892346467,4.58043094,218.29,218.23,4.5105]
[1733892346864,2.29053094,218.29,218.24,2.2904]
[1733892347067,2.29053094,218.29,218.23,2.22]
[1733892347568,2.29053094,218.29,218.25,2.2903]
[1733892349670,2.29053094,218.29,218.23,2.22]
[1733892350265,2.29053094,218.29,218.25,2.2903]
[1733892350768,2.29053094,218.29,218.26,2.22]
[1733892351171,2.29053094,218.29,218.27,2.22]
[1733892356469,2.29053094,218.29,218.28,2.29]
[1733892357579,11.06932324,218.39,218.27,2.22]
[1733892357779,11.06932324,218.39,218.32,2.2896]
[1733892357979,2.28958695,218.38,218.33,2.22]
[1733892358275,2.2891,218.37,218.33,2.22]
[1733892360183,2.28958695,218.38,218.33,2.22]
[1733892360377,4.57858695,218.38,218.33,2.22]
[1733892362477,4.57858695,218.38,218.33,4.5095]
[1733892362883,2.28958695,218.38,218.33,2.22]
[1733892363782,2.28958695,218.38,218.37,2.2891]
[1733892363783,1e-08,218.38,218.37,2.2891]
[1733892364484,11.06932324,218.48,218.34,15.24572324]
[1733892364875,11.06932324,218.51,218.37,11.06932324]
[1733892365082,2.28832951,218.5,218.46,2.2881]
[1733892365277,2.28832951,218.5,218.4,11.06932324]
[1733892365278,2.28832951,218.5,218.47,2.22]
[1733892365483,2.28832951,218.5,218.48,2.22]
[1733892367186,2.28832951,218.5,218.37,11.06932324]
[1733892367187,2.28832951,218.5,218.46,2.22]
[1733892368186,2.2879,218.48,218.46,2.22]
[1733892368592,2.28832951,218.5,218.46,2.22]
[1733892368997,11.06932324,218.54,218.46,2.22]
[1733892369390,2.2874,218.53,218.46,4.5081]
[1733892371893,2.287,218.57,218.5,2.2877]
[1733892372095,11.06932324,218.6,218.51,2.22]
[1733892372388,11.06932324,218.6,218.52,2.22]
[1733892372593,11.06932324,218.6,218.53,2.22]
[1733892372793,2.2869,218.59,218.53,2.22]
[1733892373290,2.2869,218.59,218.53,4.5074]
[1733892373696,6.5091,218.66,218.53,4.5074]
[1733892373697,2.2866,218.61,218.53,2.22]
[1733892373893,11.06932324,218.63,218.53,2.22]
[1733892374291,2.2867,218.6,218.53,2.22]
[1733892375294,11.06932324,218.63,218.53,4.5074]
[1733892375295,2.2869,218.59,218.53,4.5074]
[1733892375497,11.06932324,218.63,218.53,2.22]
[1733892376603,2.2867,218.6,218.54,2.2873]
[1733892377098,11.06932324,218.63,218.53,2.22]
[1733892377500,4.2891,218.66,218.53,2.22]
[1733892377892,2.2861,218.65,218.56,2.287]
[1733892378095,2.2861,218.65,218.53,2.22]
[1733892378600,2.2861,218.65,218.59,2.2867]
[1733892378798,2.2861,218.65,218.6,2.22]
[1733892379301,2.22,218.74,218.6,2.22]
[1733892379600,11.06932324,218.71,218.6,2.22]
[1733892379897,2.2856,218.7,218.64,2.2862]
[1733892380096,11.06932324,218.71,218.65,2.22]
[1733892380298,6.5179,218.78,218.65,2.22]
[1733892380299,4.2979,218.78,218.7,2.2856]
[1733892380603,4.2979,218.78,218.71,2.22]
[1733892380903,2.2846,218.8,218.74,2.2852]
[1733892381201,11.06932324,218.82,218.75,2.22]
[1733892381402,11.06932324,218.79,218.68,4.1604]
[1733892381597,11.06932324,218.79,218.69,2.22]
[1733892382492,11.06932324,218.76,218.64,11.06932324]
[1733892382696,11.06932324,218.73,218.65,2.22]
[1733892382892,11.06932324,218.73,218.66,2.22]
[1733892383101,11.06932324,218.73,218.64,5.53595591]
[1733892383102,11.06932324,218.73,218.67,2.22]
[1733892383494,2.2858,218.68,218.67,2.22]
[1733892384297,11.06932324,218.7,218.64,2.22]
[1733892384497,2.2861,218.65,218.64,2.22]
[1733892385397,2.2864,218.63,218.61,2.22]
[1733892385594,2.2864,218.63,218.57,2.2869]
[1733892385803,2.2864,218.63,218.58,2.22]
[1733892386302,11.06932324,218.64,218.5,11.06932324]
[1733892386601,11.06932324,218.64,218.51,2.22]
[1733892387002,2.2868,218.59,218.52,2.2875]
[1733892387403,11.06932324,218.61,218.48,2.8443]
[1733892387607,11.06932324,218.58,218.49,2.22]
[1733892388103,11.06932324,218.58,218.5,2.22]
[1733892388295,11.06932324,218.58,218.51,2.22]
[1733892389802,11.06932324,218.58,218.47,1.4229]
[1733892390000,2.2872,218.56,218.49,5.60472685]
[1733892390306,11.06932324,218.58,218.49,5.60472685]
[1733892392304,2.2871,218.56,218.49,5.60472685]
[1733892392699,2.2872,218.55,218.49,5.60472685]
[1733892392903,7.70665746,218.64,218.49,5.60472685]
[1733892392904,11.06932324,218.61,218.49,5.60472685]
[1733892393205,2.287,218.57,218.5,2.2876]
[1733892393603,2.287,218.57,218.49,5.60472685]
[1733892394703,2.287,218.57,218.51,2.2876]
[1733892395406,2.2871,218.56,218.5,2.2877]
[1733892395904,11.06932324,218.58,218.5,2.2877]
[1733892396798,11.06932324,218.58,218.51,2.2876]
[1733892396799,2.287,218.57,218.51,2.2876]
[1733892400807,11.06932324,218.58,218.49,5.60472685]
[1733892401006,11.06932324,218.58,218.5,2.22]
[1733892401907,11.06932324,218.55,218.5,2.22]
[1733892402409,2.2876,218.52,218.49,2.22]
[1733892403913,11.06932324,218.55,218.49,2.22]
[1733892404713,2.2876,218.51,218.49,2.22]
[1733892405810,11.06932324,218.55,218.41,11.06932324]
[1733892406115,11.06932324,218.52,218.42,2.22]
[1733892406314,11.06932324,218.52,218.43,2.22]
[1733892407011,2.288,218.48,218.43,2.22]
[1733892407210,11.06932324,218.55,218.43,7.69582928]
[1733892408712,2.2876,218.52,218.43,7.69582928]
[1733892409113,2.2876,218.52,218.46,2.2881]
[1733892410122,11.06932324,218.55,218.46,2.2881]
[1733892410320,2.2877,218.51,218.46,2.2881]
[1733892411317,2.2875,218.53,218.47,2.288]
[1733892411523,11.06932324,218.55,218.48,2.22]
[1733892411723,11.06932324,218.55,218.49,2.22]
[1733892411924,2.2873,218.54,218.49,2.22]
[1733892412314,2.2874,218.53,218.49,2.22]
[1733892412720,15.20262324,218.58,218.5,2.2877]
[1733892413014,15.20262324,218.58,218.49,2.22]
[1733892413616,15.20262324,218.58,218.49,4.5078]
[1733892414023,15.20262324,218.58,218.49,2.22]
[1733892414225,15.20262324,218.58,218.5,2.2877]
[1733892415018,2.2872,218.55,218.5,2.2877]
[1733892415323,2.2872,218.55,218.49,2.22]
[1733892415324,15.20262324,218.58,218.49,2.22]
[1733892415523,11.06932324,218.58,218.49,2.22]
[1733892416024,11.06932324,218.58,218.53,2.2874]
[1733892416224,11.06932324,218.58,218.54,2.22]
[1733892416621,2.2871,218.56,218.54,2.22]
[1733892417826,2.2866,218.61,218.54,2.22]
[1733892418025,11.06932324,218.62,218.54,2.22]
[1733892418530,2.2865,218.62,218.54,2.22]
[1733892419018,2.2865,218.62,218.58,2.2868]
[1733892419223,2.2865,218.62,218.59,2.22]
[1733892420123,2.2865,218.62,218.58,2.2868]
[1733892420333,2.2865,218.62,218.59,2.24]
[1733892421828,2.2865,218.62,218.6,2.24]
[1733892423728,11.06932324,218.65,218.6,2.24]
[1733892424330,11.06932324,218.65,218.54,4.2701]
[1733892424526,2.2863,218.64,218.6,2.2866]
[1733892424730,2.2863,218.64,218.61,2.24]
[1733892427932,11.06932324,218.68,218.61,2.24]
[1733892428233,11.06932324,218.65,218.59,2.24]
[1733892428431,11.06932324,218.65,218.58,2.24]
[1733892428632,2.2869,218.59,218.58,2.24]
[1733892429141,11.06932324,218.62,218.47,11.06932324]
[1733892429341,11.06932324,218.59,218.48,2.24]
[1733892429934,2.2873,218.54,218.5,2.2876]
[1733892430135,11.06932324,218.59,218.51,5.52932467]
[1733892431136,2.2867,218.6,218.55,2.2871]
[1733892431334,2.2867,218.6,218.56,2.24]
[1733892432036,2.2866,218.61,218.56,2.24]
[1733892432638,2.2867,218.6,218.56,2.24]
[1733892432839,11.06932324,218.62,218.51,9.76332467]
[1733892433144,11.06932324,218.59,218.52,2.24]
[1733892433342,2.2872,218.55,218.52,2.24]
[1733892433535,11.06932324,218.59,218.51,2.846]
[1733892433736,11.06932324,218.59,218.52,2.24]
[1733892433937,2.2874,218.54,218.52,2.24]
[1733892434341,11.06932324,218.59,218.52,2.24]
[1733892434939,12.50302712,218.58,218.52,2.24]
[1733892435138,2.2874,218.54,218.52,2.24]
[1733892435536,11.06932324,218.59,218.52,2.24]
[1733892435938,2.2873,218.55,218.52,2.24]
[1733892436341,11.06932324,218.59,218.52,2.24]
[1733892437234,11.06932324,218.59,218.54,2.2872]
[1733892437542,11.06932324,218.59,218.52,2.24]
[1733892438240,2.287,218.57,218.52,2.24]
[1733892438541,11.06932324,218.59,218.52,2.24]
[1733892439044,2.2872,218.56,218.52,2.24]
[1733892439246,11.06932324,218.59,218.52,2.24]
[1733892439539,11.06932324,218.56,218.5,2.24]
[1733892439745,2.2876,218.51,218.5,2.24]
[1733892439938,2.24,218.6,218.47,2.24]
[1733892439939,11.06932324,218.53,218.47,2.24]
[1733892440144,2.2879,218.49,218.47,2.24]
[1733892440345,11.06932324,218.53,218.47,2.24]
[1733892441047,2.2878,218.49,218.47,2.24]
[1733892442044,11.06932324,218.53,218.47,2.24]
[1733892442248,11.06932324,218.56,218.47,2.24]
[1733892443046,2.2875,218.53,218.48,2.2879]
[1733892443444,11.06932324,218.56,218.47,2.24]
[1733892444349,2.2876,218.51,218.47,4.528]
[1733892444849,11.06932324,218.56,218.48,2.2879]
[1733892444850,2.2874,218.54,218.48,2.2879]
[1733892445045,11.06932324,218.56,218.48,2.2879]
[1733892445245,11.06932324,218.56,218.47,2.24]
[1733892445744,11.06932324,218.56,218.47,4.528]
[1733892445945,11.06932324,218.56,218.47,2.24]
[1733892446241,2.2876,218.51,218.47,2.24]
[1733892446448,11.06932324,218.56,218.47,2.24]
[1733892447447,3.5992,218.59,218.47,2.24]
[1733892447448,11.06932324,218.53,218.47,2.24]
[1733892447948,11.06932324,218.5,218.43,2.24]
[1733892448645,2.2882,218.46,218.43,2.24]
[1733892451446,2.2879,218.48,218.43,4.5284]
[1733892451644,13.93462324,218.53,218.43,2.24]
[1733892452346,4.5727,218.64,218.43,2.24]
[1733892452547,11.06932324,218.55,218.43,2.24]
[1733892453046,2.2876,218.52,218.43,2.24]
[1733892453445,11.06932324,218.55,218.43,2.24]
[1733892454750,2.2877,218.51,218.46,2.2881]
[1733892456355,11.06932324,218.57,218.44,11.06932324]
[1733892456954,2.2873,218.54,218.49,2.2877]
[1733892457151,2.2873,218.54,218.5,2.22]
[1733892457555,11.06932324,218.57,218.5,2.22]
[1733892458052,2.2875,218.53,218.5,2.22]
[1733892460258,2.2873,218.54,218.5,2.22]
[1733892460556,11.06932324,218.57,218.5,2.22]
[1733892461561,2.2875,218.53,218.5,2.22]
[1733892463761,2.2876,218.51,218.5,2.22]
[1733892472572,9.36700335,218.51,218.5,2.22]
[1733892473269,9.36700335,218.51,218.47,2.288]
[1733892473270,7.07940335,218.51,218.47,2.22]
[1733892473573,7.07940335,218.48,218.47,2.22]
[1733892474571,7.07940335,218.48,218.41,2.2886]
[1733892474869,2.22,218.56,218.42,2.22]
[1733892474870,7.07940335,218.45,218.42,2.22]
[1733892475061,7.07940335,218.45,218.43,2.22]
[1733892476166,7.07940335,218.45,218.34,2.7511]
[1733892476366,7.07940335,218.4,218.35,2.22]
[1733892476763,2.22,218.5,218.36,2.22]
[1733892476764,7.07940335,218.38,218.36,2.22]
[1733892476964,7.07940335,218.38,218.35,2.22]
[1733892477369,7.07940335,218.36,218.35,2.22]
[1733892478470,9.36860335,218.36,218.34,2.22]
[1733892479170,9.36860335,218.36,218.23,1.4692]
[1733892479171,2.2902,218.27,218.22,2.22]
[1733892479471,9.36960335,218.27,218.21,2.22]
[1733892480769,9.36960335,218.27,218.22,5.48344038]
[1733892480967,7.07940335,218.27,218.22,5.48344038]
[1733892481168,2.29,218.29,218.22,5.48344038]
[1733892482775,11.0870415,218.31,218.22,5.48344038]
[1733892482776,13.3768415,218.31,218.22,5.48344038]
[1733892483672,11.0870415,218.31,218.24,2.2904]
[1733892483972,2.2898,218.3,218.24,2.2904]
[1733892485179,11.0870415,218.31,218.23,2.22]
[1733892486277,2.29,218.28,218.23,2.22]
[1733892486775,11.0870415,218.31,218.23,2.22]
[1733892486983,2.2899,218.29,218.23,2.22]
[1733892487179,2.2899,218.29,218.23,4.5105]
[1733892487675,11.0870415,218.31,218.23,2.22]
[1733892489172,11.0870415,218.34,218.23,2.22]
[1733892489370,11.0870415,218.34,218.24,1.3507]
[1733892489574,11.0870415,218.34,218.24,2.7711]
[1733892490575,2.2895,218.33,218.27,2.2901]
[1733892490871,11.0870415,218.34,218.28,2.22]
[1733892491075,11.0870415,218.37,218.28,2.22]
[1733892491373,13.3762415,218.37,218.28,2.22]
[1733892492581,2.2889,218.39,218.28,2.22]
[1733892492780,11.0870415,218.4,218.28,2.22]
[1733892493283,2.289,218.38,218.32,2.2895]
[1733892493583,2.289,218.38,218.33,2.22]
[1733892494081,13.3759415,218.4,218.33,4.5095]
[1733892494286,11.0870415,218.4,218.33,4.5095]
[1733892495387,2.289,218.38,218.33,2.22]
[1733892496085,11.0870415,218.4,218.33,2.22]
[1733892496289,2.2888,218.41,218.33,2.22]
[1733892496482,11.0870415,218.43,218.33,2.22]
[1733892496680,2.2886,218.42,218.35,2.2893]
[1733892496879,11.0870415,218.43,218.35,2.2893]
[1733892497881,2.2887,218.41,218.35,2.2893]
[1733892498987,2.2888,218.4,218.35,2.2893]
[1733892499381,11.0870415,218.43,218.35,2.2893]
[1733892499585,208.0,218.59,218.33,7.77988373]
[1733892499786,16.63248046,218.57,218.4,11.0870415]
[1733892499985,11.0870415,218.54,218.41,2.22]
[1733892500184,2.2874,218.53,218.46,2.2881]
[1733892500382,2.2874,218.53,218.47,2.22]
[1733892500790,11.0870415,218.54,218.47,2.22]
[1733892500987,11.0870415,218.54,218.45,2.2881]
[1733892501191,11.0870415,218.54,218.46,2.22]
[1733892501894,11.0870415,218.51,218.47,2.22]
[1733892502295,2.2879,218.48,218.47,2.22]
[1733892502789,11.0870415,218.51,218.47,2.22]
[1733892503496,11.0870415,218.54,218.47,2.22]
[1733892504496,11.0870415,218.51,218.37,11.0870415]
[1733892504789,11.0870415,218.51,218.44,2.2883]
[1733892504790,2.2878,218.49,218.44,2.2883]
[1733892504991,2.2878,218.49,218.45,2.22]
[1733892505689,2.288,218.47,218.46,2.22]
[1733892506194,11.0870415,218.51,218.46,2.22]
[1733892506595,13.3746415,218.51,218.46,4.5081]
[1733892506893,11.0870415,218.51,218.46,2.22]
[1733892507394,2.2879,218.48,218.46,2.22]
[1733892508096,2.2878,218.5,218.46,2.22]
[1733892508290,11.0870415,218.51,218.46,2.22]
[1733892509601,11.0870415,218.51,218.34,4.3168]
[1733892509602,11.0870415,218.51,218.34,15.4038415]
[1733892509899,11.0870415,218.48,218.35,2.22]
[1733892510401,2.2883,218.45,218.39,2.2888]
[1733892510600,2.2883,218.45,218.4,2.22]
[1733892511491,2.2887,218.41,218.36,2.2892]
[1733892511697,2.2887,218.41,218.37,2.24]
[1733892512500,2.2888,218.4,218.34,2.2893]
[1733892512803,11.0870415,218.42,218.28,11.0870415]
[1733892513103,11.0870415,218.42,218.34,2.24]
[1733892513305,2.289,218.38,218.34,2.24]
[1733892513495,11.0870415,218.42,218.34,2.24]
[1733892513696,11.0870415,218.46,218.34,2.24]
[1733892514101,2.2885,218.43,218.38,2.2889]
[1733892514300,2.2885,218.43,218.39,2.24]
[1733892515300,2.2884,218.44,218.39,4.5288]
[1733892515698,11.0870415,218.46,218.39,2.24]
[1733892516908,11.0870415,218.46,218.4,2.2887]
[1733892517507,11.0870415,218.46,218.31,11.0870415]
[1733892517712,2.2883,218.44,218.39,2.2889]